[Event "British Rapidplay Championship 2023"]
[Site "Mercure Bradford, Bankfield Hotel"]
[Date "2023.04.15"]
[Round "4.3"]
[White "Dong, Bao Nghia"]
[Black "Shaw, Peter"]
[Result "0-1"]
[TimeControl "15 minutes plus 10 seconds per move"]
[WhiteElo "2331"]
[BlackElo "2231"]

1. e4 {[%clk 00:15:16]} {[%emt 00:00:02]} d6 {[%clk 00:15:11]} {[%emt
00:00:10]} 2. Nf3 {[%clk 00:15:21]} {[%emt 00:00:04]} Nf6 {[%clk 00:15:19]}
{[%emt 00:00:02]} 3. Nc3 {[%clk 00:15:29]} {[%emt 00:00:03]} c6 {[%clk
00:15:21]} {[%emt 00:00:09]} 4. h3 {[%clk 00:15:35]} {[%emt 00:00:03]} e5
{[%clk 00:15:04]} {[%emt 00:00:26]} 5. Be2 {[%clk 00:15:43]} {[%emt 00:00:02]}
Be7 {[%clk 00:15:13]} {[%emt 00:00:02]} 6. O-O {[%clk 00:15:50]} {[%emt
00:00:03]} O-O {[%clk 00:15:20]} {[%emt 00:00:04]} 7. a4 {[%clk 00:15:53]}
{[%emt 00:00:07]} Re8 {[%clk 00:15:08]} {[%emt 00:00:22]} 8. d3 {[%clk
00:15:41]} {[%emt 00:00:21]} Nbd7 {[%clk 00:14:43]} {[%emt 00:00:36]} 9. Be3
{[%clk 00:15:14]} {[%emt 00:00:37]} d5 {[%clk 00:13:52]} {[%emt 00:01:02]} 10.
exd5 {[%clk 00:15:18]} {[%emt 00:00:06]} cxd5 {[%clk 00:14:00]} {[%emt
00:00:02]} 11. d4 {[%clk 00:15:26]} {[%emt 00:00:02]} e4 {[%clk 00:14:02]}
{[%emt 00:00:07]} 12. Ne5 {[%clk 00:15:34]} {[%emt 00:00:01]} Bd6 {[%clk
00:13:18]} {[%emt 00:00:55]} 13. Ng4 {[%clk 00:15:36]} Nxg4 {[%clk 00:12:52]}
{[%emt 00:00:45]} 14. hxg4 {[%clk 00:15:37]} {[%emt 00:00:08]} Qh4 {[%clk
00:12:48]} {[%emt 00:00:14]} 15. f4 {[%clk 00:15:15]} {[%emt 00:00:32]} exf3
{[%clk 00:11:52]} {[%emt 00:01:06]} 16. Rxf3 {[%clk 00:15:21]} {[%emt
00:00:03]} Bg3 {[%clk 00:07:56]} {[%emt 00:04:07]} 17. Rxg3 {[%clk 00:14:38]}
{[%emt 00:00:54]} Qxg3 {[%clk 00:08:02]} {[%emt 00:00:04]} 18. Bf2 {[%clk
00:14:47]} Qd6 {[%clk 00:05:40]} {[%emt 00:02:33]} 19. Nb5 {[%clk 00:14:54]}
{[%emt 00:00:02]} Qe7 {[%clk 00:04:44]} {[%emt 00:01:07]} 20. Bf3 {[%clk
00:11:13]} {[%emt 00:03:50]} Nf6 {[%clk 00:04:53]} {[%emt 00:00:02]} 21. Bg3
{[%clk 00:11:22]} {[%emt 00:00:01]} Qe3+ {[%clk 00:04:16]} {[%emt 00:00:47]} 22.
Bf2 {[%clk 00:11:30]} {[%emt 00:00:01]} Qf4 {[%clk 00:04:06]} {[%emt 00:00:20]}
23. g3 {[%clk 00:09:25]} {[%emt 00:02:15]} Qb8 {[%clk 00:04:06]} {[%emt
00:00:11]} 24. Nc3 {[%clk 00:09:33]} {[%emt 00:00:01]} Qd6 {[%clk 00:03:35]}
{[%emt 00:00:41]} 25. Kg2 {[%clk 00:08:40]} {[%emt 00:01:04]} Ne4 {[%clk
00:03:16]} {[%emt 00:00:29]} 26. Be1 {[%clk 00:08:40]} {[%emt 00:00:09]} Nxc3
{[%clk 00:03:06]} {[%emt 00:00:20]} 27. bxc3 {[%clk 00:08:21]} {[%emt
00:00:30]} Bd7 {[%clk 00:03:00]} {[%emt 00:00:17]} 28. Bd2 {[%clk 00:08:29]}
{[%emt 00:00:01]} Rac8 {[%clk 00:02:50]} {[%emt 00:00:20]} 29. Rb1 {[%clk
00:08:24]} {[%emt 00:00:15]} b6 {[%clk 00:02:55]} {[%emt 00:00:05]} 30. Ra1
{[%clk 00:08:10]} {[%emt 00:00:23]} a5 {[%clk 00:02:32]} {[%emt 00:00:34]} 31.
Qb1 {[%clk 00:08:11]} {[%emt 00:00:09]} Rc4 {[%clk 00:02:28]} {[%emt 00:00:14]}
32. Qb3 {[%clk 00:08:20]} {[%emt 00:00:01]} Qc6 {[%clk 00:02:15]} {[%emt
00:00:22]} 33. Rb1 {[%clk 00:08:13]} {[%emt 00:00:17]} Re6 {[%clk 00:02:12]}
{[%emt 00:00:13]} 34. Kf2 {[%clk 00:08:09]} {[%emt 00:00:14]} Rxa4 {[%clk
00:02:17]} {[%emt 00:00:05]} 35. Bxd5 {[%clk 00:08:12]} {[%emt 00:00:07]} Rf6+
{[%clk 00:01:54]} {[%emt 00:00:34]} 36. Kg2 {[%clk 00:07:39]} {[%emt 00:00:43]}
Qxd5+ {[%clk 00:01:33]} {[%emt 00:00:31]} 37. Qxd5 {[%clk 00:07:48]} {[%emt
00:00:01]} Bc6 {[%clk 00:01:42]} 38. Qxc6 {[%clk 00:07:51]} {[%emt 00:00:06]}
Rxc6 {[%clk 00:01:51]} {[%emt 00:00:01]} 39. Rb5 {[%clk 00:08:00]} Rac4 {[%clk
00:01:32]} {[%emt 00:00:29]} 40. d5 {[%clk 00:07:54]} {[%emt 00:00:17]} R4c5
{[%clk 00:00:25]} {[%emt 00:01:16]} 41. dxc6 {[%clk 00:08:03]} {[%emt
00:00:02]} Rxb5 {[%clk 00:00:34]} {[%emt 00:00:01]} 42. Be3 {[%clk 00:08:12]}
Re5 {[%clk 00:00:35]} {[%emt 00:00:09]} 43. Bxb6 {[%clk 00:08:11]} {[%emt
00:00:11]} a4 {[%clk 00:00:43]} {[%emt 00:00:02]} 44. c7 {[%clk 00:08:09]}
{[%emt 00:00:12]} Re8 {[%clk 00:00:51]} {[%emt 00:00:02]} 45. Bc5 {[%clk
00:08:18]} {[%emt 00:00:01]} f6 {[%clk 00:00:50]} {[%emt 00:00:10]} 46. Be7
{[%clk 00:08:21]} {[%emt 00:00:08]} Rc8 {[%clk 00:00:55]} {[%emt 00:00:05]} 47.
Bd6 {[%clk 00:08:09]} {[%emt 00:00:21]} Kf7 {[%clk 00:01:03]} {[%emt 00:00:03]}
48. Kf3 {[%clk 00:08:18]} Ke6 {[%clk 00:01:11]} {[%emt 00:00:01]} 49. Bb4
{[%clk 00:08:19]} {[%emt 00:00:10]} Rxc7 {[%clk 00:01:19]} {[%emt 00:00:03]} 50.
Ke3 {[%clk 00:08:24]} {[%emt 00:00:04]} Rc4 {[%clk 00:01:18]} {[%emt 00:00:10]}
51. Kf3 {[%clk 00:08:33]} {[%emt 00:00:01]} a3 {[%clk 00:01:22]} {[%emt
00:00:07]} 0-1

[Event "British Rapidplay Championship 2023"]
[Site "Mercure Bradford, Bankfield Hotel"]
[Date "2023.04.15"]
[Round "4.4"]
[White "Wells, Peter K"]
[Black "Ackley, Peter JE"]
[Result "1-0"]
[TimeControl "15 minutes plus 10 seconds per move"]
[WhiteElo "2466"]
[BlackElo "2151"]

1. e4 {[%clk 00:15:10]} {[%emt 00:00:09]} d6 {[%clk 00:15:19]} {[%emt
00:00:02]} 2. d4 {[%clk 00:15:14]} {[%emt 00:00:06]} g6 {[%clk 00:15:27]}
{[%emt 00:00:02]} 3. Nc3 {[%clk 00:15:18]} {[%emt 00:00:06]} c6 {[%clk
00:15:35]} {[%emt 00:00:02]} 4. Be3 {[%clk 00:14:10]} {[%emt 00:01:17]} Nf6
{[%clk 00:15:43]} {[%emt 00:00:03]} 5. Qd2 {[%clk 00:13:55]} {[%emt 00:00:25]}
Nbd7 {[%clk 00:15:49]} {[%emt 00:00:04]} 6. Nf3 {[%clk 00:13:12]} {[%emt
00:00:53]} Qc7 {[%clk 00:15:22]} {[%emt 00:00:37]} 7. Bd3 {[%clk 00:09:17]}
{[%emt 00:04:05]} e5 {[%clk 00:14:48]} {[%emt 00:00:43]} 8. O-O {[%clk
00:08:29]} {[%emt 00:00:59]} Bg7 {[%clk 00:14:55]} {[%emt 00:00:03]} 9. dxe5
{[%clk 00:08:24]} {[%emt 00:00:15]} dxe5 {[%clk 00:14:50]} {[%emt 00:00:15]} 10.
a4 {[%clk 00:08:28]} {[%emt 00:00:06]} O-O {[%clk 00:13:53]} {[%emt 00:01:07]}
11. a5 {[%clk 00:08:20]} {[%emt 00:00:19]} Ng4 {[%clk 00:13:32]} {[%emt
00:00:30]} 12. Bg5 {[%clk 00:08:24]} {[%emt 00:00:07]} Nc5 {[%clk 00:13:22]}
{[%emt 00:00:19]} 13. h3 {[%clk 00:08:02]} {[%emt 00:00:32]} Nf6 {[%clk
00:13:29]} {[%emt 00:00:03]} 14. Bh6 {[%clk 00:07:43]} {[%emt 00:00:29]} Ne6
{[%emt 00:00:30]} 15. Bxg7 {[%clk 00:07:42]} {[%emt 00:00:08]} Kxg7 {[%clk
00:13:20]} {[%emt 00:00:03]} 16. Ne2 {[%clk 00:07:47]} {[%emt 00:00:05]} Nh5
{[%clk 00:12:41]} {[%emt 00:00:48]} 17. Qc3 {[%clk 00:07:07]} {[%emt 00:00:50]}
f6 {[%clk 00:12:45]} {[%emt 00:00:05]} 18. Rfd1 {[%clk 00:07:14]} {[%emt
00:00:03]} Nef4 {[%clk 00:12:12]} {[%emt 00:00:43]} 19. Nxf4 {[%clk 00:07:10]}
{[%emt 00:00:14]} Nxf4 {[%clk 00:12:19]} {[%emt 00:00:03]} 20. Bf1 {[%clk
00:06:53]} {[%emt 00:00:27]} Be6 {[%clk 00:12:05]} {[%emt 00:00:24]} 21. Kh2
{[%clk 00:05:56]} {[%emt 00:01:08]} Rfd8 {[%clk 00:11:36]} {[%emt 00:00:39]} 22.
g3 {[%clk 00:05:26]} {[%emt 00:00:40]} Nh5 {[%clk 00:11:43]} {[%emt 00:00:03]}
23. Be2 {[%clk 00:02:40]} {[%emt 00:02:56]} Kf7 {[%clk 00:11:45]} {[%emt
00:00:08]} 24. b4 {[%clk 00:01:58]} {[%emt 00:00:53]} Rxd1 {[%clk 00:09:56]}
{[%emt 00:01:59]} 25. Rxd1 {[%clk 00:02:07]} {[%emt 00:00:01]} Rd8 {[%clk
00:10:03]} {[%emt 00:00:02]} 26. Rxd8 {[%clk 00:02:03]} {[%emt 00:00:14]} Qxd8
{[%clk 00:10:12]} {[%emt 00:00:01]} 27. Qe3 {[%clk 00:01:43]} {[%emt 00:00:30]}
b6 {[%clk 00:09:49]} {[%emt 00:00:32]} 28. Nd2 {[%clk 00:01:19]} {[%emt
00:00:34]} Ng7 {[%clk 00:09:19]} {[%emt 00:00:40]} 29. Nc4 {[%clk 00:01:22]}
{[%emt 00:00:08]} Bxc4 {[%clk 00:08:42]} {[%emt 00:00:48]} 30. Bxc4+ {[%clk
00:01:30]} Ne6 {[%clk 00:08:51]} {[%emt 00:00:02]} 31. Qb3 {[%clk 00:00:30]}
{[%emt 00:01:10]} Qd6 {[%clk 00:08:46]} {[%emt 00:00:14]} 32. axb6 {[%clk
00:00:24]} {[%emt 00:00:16]} axb6 {[%clk 00:08:52]} {[%emt 00:00:05]} 33. Qa2
{[%clk 00:00:29]} {[%emt 00:00:05]} b5 {[%clk 00:06:11]} {[%emt 00:02:51]} 34.
Bb3 {[%clk 00:00:25]} {[%emt 00:00:13]} Ke7 {[%clk 00:06:00]} {[%emt 00:00:21]}
35. h4 {[%clk 00:00:17]} {[%emt 00:00:18]} Nd8 {[%clk 00:05:18]} {[%emt
00:00:53]} 36. c3 {[%clk 00:00:16]} {[%emt 00:00:11]} Qd3 {[%clk 00:05:14]}
{[%emt 00:00:13]} 37. Qa7+ {[%clk 00:00:24]} {[%emt 00:00:02]} Qd7 {[%clk
00:05:22]} {[%emt 00:00:02]} 38. Qe3 {[%clk 00:00:32]} {[%emt 00:00:03]} Nf7
{[%clk 00:05:09]} {[%emt 00:00:22]} 39. Qc5+ {[%clk 00:00:20]} {[%emt
00:00:23]} Nd6 {[%clk 00:04:49]} {[%emt 00:00:29]} 40. Kg2 {[%clk 00:00:18]}
{[%emt 00:00:13]} Ke8 {[%clk 00:04:46]} {[%emt 00:00:13]} 41. Qe3 {[%clk
00:00:17]} {[%emt 00:00:11]} Nf7 {[%clk 00:04:35]} {[%emt 00:00:21]} 42. Qe2
{[%clk 00:00:13]} {[%emt 00:00:14]} Kf8 {[%clk 00:04:21]} {[%emt 00:00:23]} 43.
c4 {[%clk 00:00:18]} {[%emt 00:00:05]} Nd6 {[%clk 00:03:55]} {[%emt 00:00:36]}
44. cxb5 {[%clk 00:00:25]} {[%emt 00:00:03]} cxb5 {[%clk 00:03:54]} {[%emt
00:00:12]} 45. Qc2 {[%clk 00:00:26]} {[%emt 00:00:09]} Qc8 {[%clk 00:03:43]}
{[%emt 00:00:21]} 46. Qd2 {[%clk 00:00:20]} {[%emt 00:00:16]} Nc4 {[%clk
00:03:10]} {[%emt 00:00:43]} 47. Qd5 {[%clk 00:00:21]} {[%emt 00:00:09]} Qe8
{[%clk 00:02:38]} {[%emt 00:00:42]} 48. Bxc4 {[%clk 00:00:27]} {[%emt
00:00:04]} bxc4 {[%clk 00:02:47]} 49. Qxc4 {[%clk 00:00:36]} {[%emt 00:00:01]}
f5 {[%clk 00:02:55]} {[%emt 00:00:01]} 50. b5 {[%clk 00:00:34]} {[%emt
00:00:12]} f4 {[%clk 00:02:45]} {[%emt 00:00:20]} 51. b6 {[%clk 00:00:42]}
{[%emt 00:00:03]} fxg3 {[%clk 00:02:46]} {[%emt 00:00:08]} 52. b7 {[%clk
00:00:38]} {[%emt 00:00:15]} 1-0

[Event "British Rapidplay Championship 2023"]
[Site "Mercure Bradford, Bankfield Hotel"]
[Date "2023.04.15"]
[Round "4.5"]
[White "Ashton, Adam G"]
[Black "Nicholson, Jim WR"]
[Result "1-0"]
[TimeControl "15 minutes plus 10 seconds per move"]
[WhiteElo "2390"]
[BlackElo "1958"]

1. e4 {[%clk 00:15:17]} {[%emt 00:00:02]} c6 {[%clk 00:15:09]} {[%emt
00:00:12]} 2. d4 {[%clk 00:15:22]} {[%emt 00:00:04]} d5 {[%clk 00:15:16]}
{[%emt 00:00:03]} 3. e5 {[%clk 00:15:29]} {[%emt 00:00:02]} c5 {[%clk
00:15:19]} {[%emt 00:00:08]} 4. dxc5 {[%clk 00:15:37]} {[%emt 00:00:03]} e6
{[%clk 00:15:28]} {[%emt 00:00:01]} 5. a3 {[%clk 00:14:04]} {[%emt 00:01:42]}
Bxc5 {[%clk 00:15:32]} {[%emt 00:00:06]} 6. b4 {[%clk 00:13:48]} {[%emt
00:00:27]} Bb6 {[%clk 00:15:33]} {[%emt 00:00:09]} 7. Nf3 {[%clk 00:13:45]}
{[%emt 00:00:12]} Ne7 {[%clk 00:15:31]} {[%emt 00:00:11]} 8. Bd3 {[%clk
00:13:21]} {[%emt 00:00:35]} Nbc6 {[%clk 00:12:51]} {[%emt 00:02:49]} 9. O-O
{[%clk 00:13:16]} {[%emt 00:00:16]} Ng6 {[%clk 00:12:42]} {[%emt 00:00:19]} 10.
Bb2 {[%clk 00:12:12]} {[%emt 00:01:15]} Bc7 {[%clk 00:12:11]} {[%emt 00:00:41]}
11. Re1 {[%clk 00:12:17]} {[%emt 00:00:05]} b6 {[%clk 00:11:18]} {[%emt
00:01:03]} 12. Nbd2 {[%clk 00:12:11]} {[%emt 00:00:16]} Bb7 {[%clk 00:11:12]}
{[%emt 00:00:15]} 13. Rc1 {[%clk 00:10:04]} {[%emt 00:02:17]} O-O {[%clk
00:10:24]} {[%emt 00:00:59]} 14. c4 {[%clk 00:09:32]} {[%emt 00:00:41]} Nce7
{[%clk 00:09:52]} {[%emt 00:00:42]} 15. cxd5 {[%clk 00:08:59]} {[%emt
00:00:43]} Nxd5 {[%clk 00:09:40]} {[%emt 00:00:23]} 16. Ne4 {[%clk 00:08:20]}
{[%emt 00:00:49]} Rc8 {[%clk 00:08:26]} {[%emt 00:01:23]} 17. Bb1 {[%clk
00:07:36]} {[%emt 00:00:54]} Bb8 {[%clk 00:07:17]} {[%emt 00:01:19]} 18. Rxc8
{[%clk 00:07:36]} {[%emt 00:00:10]} Qxc8 {[%clk 00:07:09]} {[%emt 00:00:19]} 19.
Nd6 {[%clk 00:06:58]} {[%emt 00:00:48]} Qd7 {[%clk 00:06:57]} {[%emt 00:00:20]}
20. Nxb7 {[%clk 00:06:55]} {[%emt 00:00:15]} Qxb7 {[%clk 00:07:05]} {[%emt
00:00:02]} 21. Be4 {[%clk 00:06:48]} {[%emt 00:00:17]} Rd8 {[%clk 00:07:10]}
{[%emt 00:00:04]} 22. Ng5 {[%clk 00:05:16]} {[%emt 00:01:43]} Qe7 {[%clk
00:06:10]} {[%emt 00:01:10]} 23. Qg4 {[%clk 00:03:30]} {[%emt 00:01:56]} Ndf4
{[%clk 00:03:52]} {[%emt 00:02:27]} 24. Nxh7 {[%clk 00:02:18]} {[%emt
00:01:23]} Kxh7 {[%clk 00:03:43]} {[%emt 00:00:19]} 25. Qxf4 {[%clk 00:02:25]}
{[%emt 00:00:03]} Kg8 {[%clk 00:03:32]} {[%emt 00:00:21]} 26. Qg3 {[%clk
00:01:57]} {[%emt 00:00:38]} Nf8 {[%clk 00:02:30]} {[%emt 00:01:12]} 27. h4
{[%clk 00:01:53]} {[%emt 00:00:13]} Qd7 {[%clk 00:02:17]} {[%emt 00:00:23]} 28.
Bc3 {[%clk 00:01:50]} {[%emt 00:00:13]} f6 {[%clk 00:01:53]} {[%emt 00:00:34]}
29. h5 {[%clk 00:01:36]} {[%emt 00:00:24]} f5 {[%clk 00:01:59]} {[%emt
00:00:05]} 30. Bb1 {[%clk 00:01:41]} {[%emt 00:00:05]} Qf7 {[%clk 00:02:02]}
{[%emt 00:00:06]} 31. h6 {[%clk 00:01:21]} {[%emt 00:00:30]} Qg6 {[%clk
00:02:05]} {[%emt 00:00:08]} 32. hxg7 {[%clk 00:01:10]} {[%emt 00:00:21]} Qxg7
{[%clk 00:01:53]} {[%emt 00:00:21]} 33. Qxg7+ {[%clk 00:00:46]} {[%emt
00:00:35]} Kxg7 {[%clk 00:02:02]} {[%emt 00:00:01]} 34. f4 {[%clk 00:00:51]}
{[%emt 00:00:04]} Ng6 {[%clk 00:02:02]} {[%emt 00:00:10]} 35. g3 {[%clk
00:01:00]} {[%emt 00:00:01]} Ne7 {[%clk 00:02:03]} {[%emt 00:00:09]} 36. Ba2
{[%clk 00:00:44]} {[%emt 00:00:25]} Rd3 {[%clk 00:01:49]} {[%emt 00:00:25]} 37.
Rc1 {[%clk 00:00:53]} {[%emt 00:00:01]} Rxg3+ {[%clk 00:01:46]} {[%emt
00:00:13]} 38. Kf2 {[%clk 00:01:02]} Rd3 {[%clk 00:01:42]} {[%emt 00:00:13]} 39.
Bxe6 {[%clk 00:01:03]} {[%emt 00:00:12]} Ng6 {[%clk 00:01:41]} {[%emt
00:00:10]} 40. Bxf5 {[%clk 00:01:06]} {[%emt 00:00:07]} Rxc3 {[%clk 00:00:32]}
{[%emt 00:01:19]} 41. Rxc3 {[%clk 00:01:15]} {[%emt 00:00:01]} Nxf4 {[%clk
00:00:41]} {[%emt 00:00:01]} 42. e6 {[%clk 00:01:03]} {[%emt 00:00:21]} Kf6
{[%clk 00:00:40]} {[%emt 00:00:11]} 43. Bg4 {[%clk 00:01:06]} {[%emt 00:00:08]}
Ke7 {[%clk 00:00:27]} {[%emt 00:00:23]} 44. Rc8 {[%clk 00:00:55]} {[%emt
00:00:21]} Bd6 {[%clk 00:00:23]} {[%emt 00:00:13]} 45. Ra8 {[%clk 00:00:54]}
{[%emt 00:00:12]} Nxe6 {[%clk 00:00:11]} {[%emt 00:00:22]} 46. Bxe6 {[%clk
00:01:00]} {[%emt 00:00:04]} Kxe6 {[%emt 00:00:01]} 47. Rxa7 {[%clk 00:01:04]}
{[%emt 00:00:05]} Be5 {[%clk 00:00:23]} {[%emt 00:00:07]} 48. Ke3 {[%clk
00:01:09]} {[%emt 00:00:06]} Kd5 {[%clk 00:00:30]} {[%emt 00:00:02]} 49. Kd3
{[%clk 00:01:17]} {[%emt 00:00:03]} Kc6 {[%clk 00:00:37]} {[%emt 00:00:03]} 50.
a4 {[%clk 00:01:20]} {[%emt 00:00:07]} Bd6 {[%clk 00:00:44]} {[%emt 00:00:03]}
51. Kc4 {[%clk 00:01:04]} {[%emt 00:00:26]} Bb8 {[%clk 00:00:47]} {[%emt
00:00:07]} 52. b5+ {[%clk 00:01:02]} {[%emt 00:00:12]} Kd6 {[%clk 00:00:54]}
{[%emt 00:00:03]} 53. Rb7 {[%clk 00:01:07]} {[%emt 00:00:04]} Bc7 {[%clk
00:01:04]} {[%emt 00:00:01]} 54. Kd4 {[%clk 00:01:00]} {[%emt 00:00:16]} Bd8
{[%clk 00:01:09]} {[%emt 00:00:06]} 55. Rh7 {[%clk 00:01:05]} {[%emt 00:00:05]}
Bf6+ {[%clk 00:01:13]} {[%emt 00:00:05]} 56. Kc4 {[%clk 00:01:14]} {[%emt
00:00:02]} Bg5 {[%clk 00:00:52]} {[%emt 00:00:30]} 57. Rg7 {[%clk 00:01:18]}
{[%emt 00:00:06]} Be3 {[%clk 00:00:56]} {[%emt 00:00:06]} 58. Rg6+ {[%clk
00:01:26]} {[%emt 00:00:03]} Kc7 {[%clk 00:01:05]} {[%emt 00:00:01]} 59. Kd5
{[%clk 00:01:34]} {[%emt 00:00:02]} Bf2 {[%clk 00:01:08]} {[%emt 00:00:06]} 60.
Rg7+ {[%clk 00:01:41]} {[%emt 00:00:03]} Kc8 {[%clk 00:01:14]} {[%emt
00:00:05]} 61. Kc6 {[%clk 00:01:49]} {[%emt 00:00:02]} Kd8 {[%clk 00:00:58]}
{[%emt 00:00:26]} 62. a5 {[%clk 00:01:34]} {[%emt 00:00:25]} bxa5 {[%clk
00:01:04]} {[%emt 00:00:04]} 63. b6 {[%clk 00:01:43]} {[%emt 00:00:01]} a4
{[%clk 00:01:11]} {[%emt 00:00:03]} 64. b7 {[%clk 00:01:49]} {[%emt 00:00:04]}
Ba7 {[%clk 00:01:15]} {[%emt 00:00:05]} 65. Rg8+ {[%clk 00:01:54]} {[%emt
00:00:06]} 1-0

[Event "British Rapidplay Championship 2023"]
[Site "Mercure Bradford, Bankfield Hotel"]
[Date "2023.04.15"]
[Round "4.6"]
[White "Edwards-Wright, Miles D"]
[Black "Pitcher, John"]
[Result "1/2-1/2"]
[TimeControl "15 minutes plus 10 seconds per move"]
[WhiteElo "1937"]
[BlackElo "2358"]

1. g3 {[%clk 00:15:19]} {[%emt 00:00:01]} d5 {[%clk 00:14:57]} {[%emt
00:00:23]} 2. Bg2 {[%clk 00:15:27]} {[%emt 00:00:02]} Nf6 {[%clk 00:15:05]}
{[%emt 00:00:01]} 3. d3 {[%clk 00:15:35]} {[%emt 00:00:03]} c6 {[%clk
00:15:00]} {[%emt 00:00:14]} 4. b3 {[%clk 00:15:39]} {[%emt 00:00:07]} Bf5
{[%clk 00:14:53]} {[%emt 00:00:17]} 5. Bb2 {[%clk 00:15:45]} {[%emt 00:00:04]}
e6 {[%clk 00:15:01]} {[%emt 00:00:01]} 6. Nd2 {[%clk 00:15:53]} {[%emt
00:00:03]} Be7 {[%clk 00:15:01]} {[%emt 00:00:09]} 7. Ngf3 {[%clk 00:16:00]}
{[%emt 00:00:04]} h6 {[%clk 00:15:04]} {[%emt 00:00:07]} 8. O-O {[%clk
00:16:06]} {[%emt 00:00:03]} O-O {[%clk 00:15:05]} {[%emt 00:00:09]} 9. Ne5
{[%clk 00:16:13]} {[%emt 00:00:03]} a5 {[%clk 00:14:53]} {[%emt 00:00:22]} 10.
e4 {[%clk 00:16:00]} {[%emt 00:00:23]} Bh7 {[%clk 00:14:41]} {[%emt 00:00:22]}
11. a3 {[%clk 00:15:10]} {[%emt 00:01:01]} dxe4 {[%clk 00:14:17]} {[%emt
00:00:33]} 12. Nxe4 {[%clk 00:15:04]} {[%emt 00:00:16]} Na6 {[%clk 00:13:38]}
{[%emt 00:00:49]} 13. Ng4 {[%clk 00:14:02]} {[%emt 00:01:13]} Nxe4 {[%clk
00:12:59]} {[%emt 00:00:48]} 14. dxe4 {[%clk 00:13:56]} {[%emt 00:00:17]} Qxd1
{[%clk 00:12:56]} {[%emt 00:00:13]} 15. Raxd1 {[%clk 00:13:52]} {[%emt
00:00:15]} Rfd8 {[%clk 00:13:02]} {[%emt 00:00:02]} 16. Ne3 {[%clk 00:13:24]}
{[%emt 00:00:38]} Nc5 {[%clk 00:10:38]} {[%emt 00:02:34]} 17. f3 {[%clk
00:13:13]} {[%emt 00:00:22]} b5 {[%clk 00:09:36]} {[%emt 00:01:12]} 18. Rxd8+
{[%clk 00:12:36]} {[%emt 00:00:48]} Rxd8 {[%clk 00:09:42]} {[%emt 00:00:03]} 19.
Rd1 {[%clk 00:12:44]} {[%emt 00:00:02]} Rxd1+ {[%clk 00:08:14]} {[%emt
00:01:38]} 20. Nxd1 {[%clk 00:12:52]} {[%emt 00:00:02]} Kf8 {[%clk 00:07:26]}
{[%emt 00:00:56]} 21. Kf2 {[%clk 00:12:58]} {[%emt 00:00:05]} f6 {[%clk
00:07:01]} {[%emt 00:00:34]} 22. Ke3 {[%clk 00:12:07]} {[%emt 00:01:03]} Ke8
{[%clk 00:07:02]} {[%emt 00:00:08]} 23. Nf2 {[%clk 00:12:01]} {[%emt 00:00:16]}
e5 {[%clk 00:06:44]} {[%emt 00:00:28]} 24. Nd3 {[%clk 00:10:03]} {[%emt
00:02:09]} Bg8 {[%clk 00:05:31]} {[%emt 00:01:22]} 25. f4 {[%clk 00:07:28]}
{[%emt 00:02:46]} Nxd3 {[%clk 00:05:31]} {[%emt 00:00:09]} 26. Kxd3 {[%clk
00:07:33]} {[%emt 00:00:05]} Bd6 {[%clk 00:05:38]} {[%emt 00:00:03]} 27. f5
{[%clk 00:07:24]} {[%emt 00:00:19]} Bc5 {[%clk 00:03:43]} {[%emt 00:02:05]} 28.
Bf3 {[%clk 00:06:34]} {[%emt 00:01:00]} Bf7 {[%clk 00:03:39]} {[%emt 00:00:13]}
29. g4 {[%clk 00:06:17]} {[%emt 00:00:28]} Kd7 {[%clk 00:03:47]} {[%emt
00:00:02]} 30. Bc1 {[%clk 00:05:40]} {[%emt 00:00:48]} Bf2 {[%clk 00:03:16]}
{[%emt 00:00:40]} 31. Be3 {[%clk 00:05:33]} {[%emt 00:00:18]} Bxe3 {[%clk
00:03:09]} {[%emt 00:00:17]} 32. Kxe3 {[%clk 00:05:41]} {[%emt 00:00:03]} Kd6
{[%clk 00:03:03]} {[%emt 00:00:15]} 33. Bd1 {[%clk 00:05:24]} {[%emt 00:00:28]}
Kc5 {[%clk 00:02:30]} {[%emt 00:00:42]} 34. Kd3 {[%clk 00:05:12]} {[%emt
00:00:22]} b4 {[%clk 00:01:29]} {[%emt 00:01:11]} 35. a4 {[%clk 00:04:48]}
{[%emt 00:00:34]} Kd6 {[%clk 00:01:36]} {[%emt 00:00:02]} 36. c4 {[%clk
00:04:42]} {[%emt 00:00:16]} bxc3 {[%clk 00:00:57]} {[%emt 00:00:49]} 37. Kxc3
{[%clk 00:04:50]} {[%emt 00:00:01]} Kc5 {[%clk 00:01:04]} {[%emt 00:00:03]}
1/2-1/2